Cogmind - Beta 14 @@@ ROGUE MODE // 2024.12.25 @ 17:51:46 Player: buwwet Result: Self-destructed Performance ------------- Evolutions (4) 2000 Regions Visited (16) 3200 Robots Destroyed (117) 585 Value Destroyed (3587) 3587 Prototype IDs (9) 180 Alien Tech Used (0) 0 Bonus (611) 611 TOTAL SCORE: 10163 Bonus ------- High Alert Combat Kills 11 Aligned with FarCom 300 Met Imprinter 300 Cogmind --------- Core Integrity 476/850 Matter 35/300 Energy 125/125 System Corruption 6% Temperature Cool (0) Movement Rolling (130) Ox2 Location -6/Lower Caves Parts ------- > --- POWER (2) -------- Light Ion Engine > --- PROPULSION (5) --- Armored Leg Compact Wheel Gravmag Array > --- UTILITY (5) ------ Large Storage Unit Visual Processing Unit Target Analyzer Core Analyzer Improved Medium Armor Plating > --- WEAPON (3) ------- Autogun Advanced Assault Cannon Great Axe > --- INVENTORY (15) --- Light Fission Core Gravmag Array Improved Heat Sink Improved Salvage Targeting Computer Improved Heavy Armor Plating Layered Light Armor Plating Layered Light Armor Plating Force Field Hacking Suite Shock Rifle Phase Cannon Advanced Assault Cannon Advanced Assault Cannon Peak State ------------ > --- POWER ------------ (None) > --- PROPULSION ------- Advanced Heavy Treads Gravmag System Gravmag Array > --- UTILITY ---------- Target Analyzer Target Analyzer Kinecellerator Layered Light Armor Plating Layered Light Armor Plating > --- WEAPON ----------- Shock Rifle Gauss Cannon Dual-blade Saw > --- INVENTORY -------- Large Storage Unit Cloaking Device Hacking Suite [Rating: 62] Favorites ----------- Power Heavy Ion Engine Engine Heavy Ion Engine Power Core Light Nuclear Core Propulsion Medium Treads Treads Medium Treads Leg Armored Leg Wheel Wheel Hover Unit Gravmag System Flight Unit Xenon Bombardment Thruster Utility High-capacity Storage Unit Device Improved Heat Sink Storage High-capacity Storage Unit Processor Core Analyzer Hackware Authchip [Power] Protection Hardened Medium Armor Plating Weapon Gauss Cannon Energy Gun Improved EM Shotgun Energy Cannon Advanced Beam Cannon Ballistic Gun Minigun Ballistic Cannon Gauss Cannon Launcher Heavy Rocket Launcher Impact Weapon Heavy Mace Slashing Weapon Axe Build | -11 -10 -10 -9 -9 -9 -8 -8 -7 -7 -7 -7 -6 -6 -6 -6 -6 ------- Run | Yrd Mat Min Mat Min Exi Min Mat Fac Low Low Zio Pro Fac Was Fac Low Slots Evolved 8 | . . . 2 . . . 2 2 . . . . 2 . . . Power 1 | . . . . . . . . 1 . . . . . . . . Propulsion 3 | . . . 1 . . . . 1 . . . . 1 . . . Utility 3 | . . . 1 . . . 1 . . . . . 1 . . . Weapon 1 | . . . . . . . 1 . . . . . . . . . Parts Attached 170 | 8 5 5 16 4 6 3 11 25 2 2 4 28 19 7 25 . Power 14 | 1 1 . 3 . . . . 1 . 1 . 3 1 . 3 . Engine 10 | 1 1 . 3 . . . . 1 . . . . 1 . 3 . Core 4 | . . . . . . . . . . 1 . 3 . . . . Reactor . | . . . . . . . . . . . . . . . . . Propulsion 39 | 2 . 1 6 . . . 4 8 . . 2 6 3 2 5 . Treads 20 | 1 . 1 4 . . . 2 5 . . 1 2 1 1 2 . Leg 2 | . . . . . . . . . . . . 1 . . 1 . Wheel 10 | 1 . . 2 . . . 2 2 . . . . 2 . 1 . Hover 6 | . . . . . . . . 1 . . . 3 . 1 1 . Flight 1 | . . . . . . . . . . . 1 . . . . . Utility 56 | 2 2 1 3 1 3 2 3 4 2 . 2 7 9 4 11 . Device 32 | 1 1 1 2 1 2 2 . 1 2 . 2 3 8 2 4 . Storage 4 | 1 1 . . . . . 1 . . . . . . . 1 . Processor 6 | . . . . . . . 2 . . . . 1 . . 3 . Hackware 2 | . . . . . . . . 2 . . . . . . . . Protection 12 | . . . 1 . 1 . . 1 . . . 3 1 2 3 . Artifact . | . . . . . . . . . . . . . . . . . Weapon 61 | 3 2 3 4 3 3 1 4 12 . 1 . 12 6 1 6 . Energy Gun 10 | . 1 1 1 . . . 2 2 . . . 1 1 . 1 . Energy Cannon 9 | . . . 1 1 2 1 1 1 . . . . 2 . . . Ballistic Gun 16 | 3 1 1 2 . . . . 3 . . . 5 . . 1 . Ballistic Cannon 9 | . . . . . . . . 2 . . . 1 3 . 3 . Launcher 7 | . . . . 2 1 . . . . 1 . 3 . . . . Special Weapon . | . . . . . . . . . . . . . . . . . Impact Weapon 7 | . . 1 . . . . 1 4 . . . 1 . . . . Slashing Weapon 3 | . . . . . . . . . . . . 1 . 1 1 . Piercing Weapon . | . . . . . . . . . . . . . . . . . Special Melee Weapon . | . . . . . . . . . . . . . . . . . Unidentified Prototypes 9 | . . . 4 . 3 . . 1 . . 1 . . . . . Parts Lost 45 | . 1 3 2 . . 2 2 3 . . . 15 2 6 9 . Power 5 | . . . . . . . . . . . . 4 . . 1 . Propulsion 15 | . . 1 1 . . . 1 2 . . . 3 1 3 3 . Utility 11 | . . 2 1 . . 1 . . . . . 4 . 1 2 . Weapon 14 | . 1 . . . . 1 1 1 . . . 4 1 2 3 . Highest Loss Streak 8 | . 1 2 1 . . 2 1 1 . . . 8 2 6 4 . To Critical Strikes . | . . . . . . . . . . . . . . . . . Average Slot Usage (%) 90 | . 100 97 99 100 98 100 100 89 92 92 91 90 96 69 65 . Engine 8 | . 14 14 11 11 11 11 9 10 15 7 7 4 5 3 3 . Core 2 | . . . . . . . . . . 6 7 9 6 3 . . Treads 14 | . 14 14 19 22 22 22 20 17 15 15 14 14 12 4 4 . Wheel 7 | . 14 14 13 11 11 11 6 7 7 7 7 6 6 7 2 . Hover 2 | . . . . . . . . . . . . . 13 10 6 . Device 8 | . 14 11 15 11 11 19 9 3 6 7 6 7 14 8 5 . Storage 7 | . 14 14 11 11 11 11 9 7 7 7 7 7 6 3 3 . Processor 8 | . . . . . . . 18 15 7 7 7 7 6 6 10 . Protection 4 | . . . 6 11 10 2 . 2 7 7 7 6 3 6 7 . Energy Gun 3 | . 5 14 2 . . . 12 5 . . . 3 . 3 1 . Energy Cannon 2 | . . . 8 14 10 19 13 . . . . . . 3 . . Ballistic Gun 6 | . 22 12 10 . . . . 3 15 15 15 8 . . 2 . Ballistic Cannon 3 | . . . . . . . . 6 7 4 . . 8 3 5 . Launcher 1 | . . . . 7 10 2 . . . 2 7 5 . . . . Impact Weapon 1 | . . 1 . . . . 1 4 . . . 1 3 . . . Slashing Weapon 1 | . . . . . . . . . . . . . 5 . 4 . Peak Build Rating 62 | 7 9 9 21 20 35 20 30 49 49 47 54 49 56 54 62 . Average Rating 37 | 5 8 8 18 18 18 19 28 41 47 46 45 45 50 42 45 . On Entrance 29 | . 7 9 9 21 18 19 20 30 48 47 46 46 35 55 48 47 Naked Turns . | . . . . . . . . . . . . . . . . . Heaviest Build 78 | 15 30 30 41 42 41 38 59 77 78 78 75 78 78 78 49 . Greatest Support 76 | 20 10 10 26 10 10 10 60 76 28 28 28 56 56 20 29 . Greatest Overweight (x) 12 | 1 2 2 4 4 4 3 12 6 2 2 2 2 7 4 2 . Average Overweight (x) 2 | . 1 2 2 4 3 3 2 1 2 2 2 1 4 1 1 . Largest Inventory Capacity 20 | 8 15 15 15 15 15 15 20 20 20 20 20 20 20 20 15 . Average Capacity 17 | 7 14 15 15 15 15 15 15 20 20 20 20 20 20 14 11 . Most Carried 20 | 6 15 15 15 15 15 15 15 20 20 20 20 20 20 18 15 . Average Carried 16 | 3 12 14 14 14 14 13 14 19 19 19 19 18 15 11 7 . Final Capacity 20 | 8 15 15 15 15 15 15 20 20 20 20 20 20 20 5 15 15 Final Carried 20 | 6 15 15 15 15 15 14 15 20 20 20 20 10 18 1 15 15 Class Distribution -------------------- 32% | Scavenger-Mutant 30% | Mutant 18% | Gunner 12% | Scavenger-Skirmisher 5% | Skirmisher Dominant Class ---------------- Mutant | -10/Materials Mutant | -10/Mines Scavenger-Mutant | -9/Materials Scavenger-Mutant | -9/Mines Scavenger-Mutant | -9/Exiles Scavenger-Skirmisher | -8/Mines Scavenger-Skirmisher | -8/Materials Mutant | -7/Factory Gunner | -7/Lower Caves Gunner | -7/Lower Caves Gunner | -7/Zion Gunner | -6/Proximity Caves Scavenger-Mutant | -6/Factory Scavenger-Skirmisher | -6/Waste Mutant | -6/Factory Mutant | -6/Lower Caves Resources | -11 -10 -10 -9 -9 -9 -8 -8 -7 -7 -7 -7 -6 -6 -6 -6 -6 ----------- Run | Yrd Mat Min Mat Min Exi Min Mat Fac Low Low Zio Pro Fac Was Fac Low Matter Collected 3031 | 262 259 126 240 101 . 87 114 451 67 119 40 604 75 . 486 . Remotely 306 | . 259 47 . . . . . . . . . . . . . . Salvage Created 3879 | 48 351 230 567 76 . 82 609 746 . 129 . 624 75 . 342 . Parts 238 | 7 24 12 38 13 . 6 30 35 . 13 . 24 12 . 24 . Haulers Intercepted 8 | . . . 4 . . . 1 3 . . . . . . . . Recyclers Shooed 3 | . . . . . . 1 . . . . . . . . 2 . Parts Field Recycled . | . . . . . . . . . . . . . . . . . Retrieved Matter . | . . . . . . . . . . . . . . . . . Parts Self-Destructed 28 | . . . . . . . . . . 10 . 18 . . . . Prevented 2 | . . . . . . . . . . . . 2 . . . . Kills | -11 -10 -10 -9 -9 -9 -8 -8 -7 -7 -7 -7 -6 -6 -6 -6 -6 ------- Run | Yrd Mat Min Mat Min Exi Min Mat Fac Low Low Zio Pro Fac Was Fac Low Combat Hostiles Destroyed 89 | . 7 7 11 7 . 6 9 10 . 8 . 14 2 . 8 . Melee 8 | . . 2 . . . . . 3 . . . 1 . . 2 . Guns 28 | . 7 5 3 . . . 5 1 . 2 . 5 . . . . Cannons 32 | . . . 8 1 . 2 3 5 . 2 . 3 2 . 6 . AOE 18 | . . . . 6 . 4 1 . . 4 . 3 . . . . Classes Destroyed 13 | 1 2 1 2 1 . . 3 1 . . . 2 . . . . Worker 3 | . . . . 1 . . . . . . . . . . 2 . Builder 4 | . . . . . . . 1 . . . . . 2 . 1 . Tunneler 4 | 2 1 . . 1 . . . . . . . . . . . . Hauler 8 | . . . 4 . . . 1 3 . . . . . . . . Recycler 2 | . . . . . . . 1 1 . . . . . . . . Operator 1 | . . . . . . . 1 . . . . . . . . . Watcher 6 | . 1 . 1 . . . . 3 . . . . . . 1 . Swarmer 31 | . . 3 3 7 . 4 3 . . 8 . . . . 3 . Grunt 36 | . 7 4 5 . . 2 5 3 . . . 9 . . 1 . Brawler 2 | . . . . . . . . . . . . 2 . . . . Duelist 1 | . . . . . . . . . . . . 1 . . . . Sentry 9 | . . . 3 . . . 1 3 . . . 1 . . 1 . Programmer 10 | . . . . . . . . 4 . . . 1 2 . 3 . Best Kill Streak 6 | 2 3 3 6 4 . 5 6 3 . 4 . 4 2 . 3 . Combat Bots Only 6 | . 3 3 6 4 . 5 6 3 . 4 . 4 1 . 2 . Max Kills in Single Turn 4 | 1 1 1 1 4 . 3 2 1 . 4 . 2 1 . 1 . Gunslinging 1 | . . . . . . . 1 . . . . . . . . . Exploded 4 | . . . . 3 . 3 1 . . 4 . 2 . . . . Melee 1 | . . 1 . . . . . 1 . . . 1 . . 1 . Uniques/NPCs Destroyed . | . . . . . . . . . . . . . . . . . Combat | -11 -10 -10 -9 -9 -9 -8 -8 -7 -7 -7 -7 -6 -6 -6 -6 -6 -------- Run | Yrd Mat Min Mat Min Exi Min Mat Fac Low Low Zio Pro Fac Was Fac Low Hostile Shots Fired 683 | . 40 45 38 15 . 33 44 85 . 28 . 164 14 8 169 . Missed 196 | . 8 13 9 8 . 10 11 22 . 5 . 43 4 2 61 . Damage Taken 7099 | . 448 360 344 92 . 391 452 639 . 349 . 2131 282 276 1335 . Core 1225 | . 85 10 49 . . 128 100 81 . . . 398 67 137 170 . Absorbed by Shields 59 | . . . . . . . . . . . . . . . 59 . Regen/Repaired (Parts) 70 | . . . . . . . . . . . 70 . . . . . Core Remaining (%) 65 | 100 . 62 . . . 55 81 . . . . 31 . . . . Volleys Fired 233 | 3 36 22 37 13 . 10 20 22 . 7 . 28 8 . 27 . Largest 3 | 2 2 2 2 1 . 2 3 3 . 3 . 3 3 . 3 . Hottest 181 | 40 60 60 91 68 . 136 181 161 . 98 . 142 175 . 119 . Shots Fired 481 | 6 71 44 74 13 . 20 51 55 . 19 . 75 19 . 34 . Gun 281 | 6 71 44 42 . . . 20 28 . 12 . 55 . . 3 . Cannon 185 | . . . 32 9 . 16 31 27 . 6 . 14 19 . 31 . Launcher 15 | . . . . 4 . 4 . . . 1 . 6 . . . . Special . | . . . . . . . . . . . . . . . . . Kinetic 288 | 6 66 22 37 . . . . 35 . 18 . 54 16 . 34 . Thermal 142 | . 5 22 37 9 . 16 31 7 . . . 15 . . . . Explosive 15 | . . . . 4 . 4 . . . 1 . 6 . . . . Electromagnetic 36 | . . . . . . . 20 13 . . . . 3 . . . Robot Hit Streak 13 | 2 7 4 13 4 . 4 10 7 . 2 . 5 5 . 9 . Robot Miss Streak 8 | 2 3 5 2 2 . 3 4 4 . 8 . 4 6 . 6 . Penetration Max . | . . . . . . . . . . . . . . . . . Secondary Targets 1 | . . . . . . . 1 . . . . . . . . . Max Gunslinging Chain 1 | . . . . . . . 1 . . . . . . . . . Shots Hit Robots 334 | 3 47 29 51 8 . 9 34 48 . 5 . 50 19 . 31 . Core Hits 191 | 2 19 13 19 9 . 12 25 23 . 8 . 34 9 . 18 . Critical Kills 2 | . . . 1 . . . . 1 . . . . . . . . Critical Parts Destroyed 6 | . 1 . 1 . . . . 2 . . . 2 . . . . Critical Strikes 16 | . 1 . 2 . . . . 4 . . . 3 . . 6 . Meltdown 2 | . . . 1 . . . . 1 . . . . . . . . Destroy 2 | . 1 . 1 . . . . . . . . . . . . . Blast 5 | . . . . . . . . 1 . . . 1 . . 3 . Smash 4 | . . . . . . . . 2 . . . 2 . . . . Sever 3 | . . . . . . . . . . . . . . . 3 . Melee Attacks 103 | . . 9 . . . . 4 51 . . . 12 7 . 20 . Impact 78 | . . 9 . . . . 4 51 . . . 11 3 . . . Slashing 25 | . . . . . . . . . . . . 1 4 . 20 . Piercing . | . . . . . . . . . . . . . . . . . Sneak Attacks 11 | . . . . . . . . 3 . . . . 3 . 5 . Combat Hostiles . | . . . . . . . . . . . . . . . . . Follow-up Attacks 2 | . . . . . . . . . . . . 1 1 . . . Damage Inflicted 8751 | 40 609 419 968 430 . 513 755 1519 . 361 . 1692 431 . 1014 . Guns 2718 | 40 609 283 397 . . . 247 406 . 30 . 655 . . 51 . Cannons 2628 | . . . 571 122 . 165 408 383 . 58 . 164 228 . 529 . Explosions 1638 | . . . . 308 . 348 100 40 . 273 . 569 . . . . Melee 1765 | . . 136 . . . . . 690 . . . 304 203 . 432 . Ramming 2 | . . . . . . . . . . . . . . . 2 . Kinetic 3132 | 40 575 154 338 . . . . 514 . 88 . 621 222 . 580 . Thermal 1886 | . 34 129 630 122 . 165 508 100 . . . 198 . . . . Explosive 1498 | . . . . 308 . 348 . . . 273 . 569 . . . . Electromagnetic 468 | . . . . . . . 247 215 . . . . 6 . . . Impact 1167 | . . 136 . . . . . 690 . . . 273 68 . . . Slashing 598 | . . . . . . . . . . . . 31 135 . 432 . Piercing . | . . . . . . . . . . . . . . . . . Highest Corruption 6 | . . . . . . . . 2 2 2 2 1 5 5 6 . Average Corruption 3 | . . . . . . . . 1 2 2 2 1 4 5 5 . Corruption Purged . | . . . . . . . . . . . . . . . . . Corruption Blocked . | . . . . . . . . . . . . . . . . . Effects 71 | . . . . . . . . 28 3 2 1 4 2 4 27 . Message Errors 21 | . . . . . . . . 9 . 2 . 1 . 3 6 . Matter Fused 18 | . . . . . . . . 7 . . . 3 . . 8 . Heat Flow Errors 6 | . . . . . . . . 2 1 . . . 1 . 2 . Energy Discharges 6 | . . . . . . . . 2 1 . . . 1 . 2 . Parts Rejected 2 | . . . . . . . . . . . . . . 1 1 . Data Loss (minor) 8 | . . . . . . . . 5 . . 1 . . . 2 . Data Loss (major) 2 | . . . . . . . . . . . . . . . 2 . Misfires 3 | . . . . . . . . 1 . . . . . . 2 . Alerts 4 | . . . . . . . . 2 1 . . . . . 1 . Weapon Failures 1 | . . . . . . . . . . . . . . . 1 . Overload Shots . | . . . . . . . . . . . . . . . . . Overflow Damage 439 | . . 7 . . . 8 1 203 . . . 112 65 . 43 . Projectiles 23 | . . . . . . . 1 6 . . . 14 . . 2 . Explosions 8 | . . . . . . 8 . . . . . . . . . . Melee 408 | . . 7 . . . . . 197 . . . 98 65 . 41 . Knockbacks 17 | . . . . . . . . 2 . . . 1 5 . 9 . Impact 2 | . . . . . . . . 1 . . . 1 . . . . Kinetic 14 | . . . . . . . . 1 . . . . 5 . 8 . Secondary 1 | . . . . . . . . . . . . . . . 1 . Self-Inflicted Damage 327 | . . . . 39 . 36 51 25 . 29 . 146 . . 1 . Shots 11 | . . . . 2 . 2 1 1 . 1 . 4 . . . . Rammed 1 | . . . . . . . . . . . . . . . 1 . Targets Rammed 1 | . . . . . . . . . . . . . . . 1 . Kicked . | . . . . . . . . . . . . . . . . . Crushed . | . . . . . . . . . . . . . . . . . Highest Temperature 671 | . 20 45 10 24 . 172 234 204 230 253 . 671 194 . 211 . Average Temperature 106 | . 7 14 5 11 . 67 98 65 119 115 . 229 58 . 72 . Received Heat Transfer 1831 | . 240 162 123 . . 198 180 186 . . . 609 24 . 109 . Effects 29 | . . . . . . . 2 . . . . 27 . . . . Shutdowns 9 | . . . . . . . . . . . . 9 . . . . Energy Bleed 5 | . . . . . . . . . . . . 5 . . . . Interference 2 | . . . . . . . 2 . . . . . . . . . Matter Decay 3 | . . . . . . . . . . . . 3 . . . . Short Circuit 2 | . . . . . . . . . . . . 2 . . . . Damage (minor) 3 | . . . . . . . . . . . . 3 . . . . Damage (major) 4 | . . . . . . . . . . . . 4 . . . . Damage (core) 1 | . . . . . . . . . . . . 1 . . . . Siege Activations . | . . . . . . . . . . . . . . . . . Robots Corrupted 5 | . . . . . . . . 3 . . . 2 . . . . Combat Hostiles 3 | . . . . . . . . 1 . . . 2 . . . . Parts Fried 5 | . . . . . . . . 5 . . . . . . . . Impact Corruptions 9 | . . 1 . . . . . 5 . . . 3 . . . . Robots Melted 2 | . . . 1 . . . . 1 . . . . . . . . Combat Hostiles . | . . . . . . . . . . . . . . . . . Parts Melted 8 | . . . 3 1 . . . 4 . . . . . . . . Heat Transferred 3448 | . 75 300 1184 222 . 296 840 161 . . . 370 . . . . Parts Sabotaged . | . . . . . . . . . . . . . . . . . Parts Stolen . | . . . . . . . . . . . . . . . . . Parts Stripped . | . . . . . . . . . . . . . . . . . Power Chain Reactions 3 | . . . . . . . 2 1 . . . . . . . . Alert | -11 -10 -10 -9 -9 -9 -8 -8 -7 -7 -7 -7 -6 -6 -6 -6 -6 ------- Run | Yrd Mat Min Mat Min Exi Min Mat Fac Low Low Zio Pro Fac Was Fac Low Peak Influence 448 | 10 198 171 448 305 . 178 264 178 . . . . 60 15 125 . Initial 96 | . 6 11 66 96 . . 68 63 . . . . 25 . . . Average 80 | 2 81 75 214 213 . 156 107 80 . . . . 14 . 32 . Maximum Alert Level 2 | . . . 2 1 . . 1 . . . . . . . . . Low Security (%) 91 | 100 100 100 45 29 . 100 90 100 . . . . 100 100 100 . Level 1 8 | . . . 44 70 . . 9 . . . . . . . . . Level 2 . | . . . 10 . . . . . . . . . . . . . Level 3 . | . . . . . . . . . . . . . . . . . Level 4 . | . . . . . . . . . . . . . . . . . Level 5 . | . . . . . . . . . . . . . . . . . High Security . | . . . . . . . . . . . . . . . . . Max Security . | . . . . . . . . . . . . . . . . . Squads Dispatched 18 | . 1 . 2 1 . . . 6 . . . . 3 . 5 . Investigation 3 | . 1 . 1 1 . . . . . . . . . . . . Extermination 8 | . . . . . . . . 4 . . . . 2 . 2 . Reinforcement 7 | . . . 1 . . . . 2 . . . . 1 . 3 . Assault . | . . . . . . . . . . . . . . . . . Garrison . | . . . . . . . . . . . . . . . . . Intercept . | . . . . . . . . . . . . . . . . . Searches Triggered . | . . . . . . . . . . . . . . . . . Construction Impeded . | . . . . . . . . . . . . . . . . . Haulers Reinforced 2 | . . . . . . . . 2 . . . . . . . . Active Scanning Responses . | . . . . . . . . . . . . . . . . . Cargo Convoy Interrupts . | . . . . . . . . . . . . . . . . . Stealth | -11 -10 -10 -9 -9 -9 -8 -8 -7 -7 -7 -7 -6 -6 -6 -6 -6 --------- Run | Yrd Mat Min Mat Min Exi Min Mat Fac Low Low Zio Pro Fac Was Fac Low Distress Signals 5 | . 3 . 2 . . . . . . . . . . . . . Communications Jammed . | . . . . . . . . . . . . . . . . . Distress Signals . | . . . . . . . . . . . . . . . . . Times Spotted 133 | . 16 7 15 7 . 6 10 24 . 8 . 15 5 6 14 . Peak Tracking Total 7 | . 6 3 5 4 . 7 5 3 . 4 . 7 3 6 3 . Tactical Retreats 6 | . 1 . 1 . . 1 . . . . . 1 . . 2 . Traps | -11 -10 -10 -9 -9 -9 -8 -8 -7 -7 -7 -7 -6 -6 -6 -6 -6 ------- Run | Yrd Mat Min Mat Min Exi Min Mat Fac Low Low Zio Pro Fac Was Fac Low Traps Triggered 6 | . 2 . 1 . . . . . . . . . 2 . 1 . Indirectly . | . . . . . . . . . . . . . . . . . Trap Hack Attempts . | . . . . . . . . . . . . . . . . . Triggered . | . . . . . . . . . . . . . . . . . Disarmed . | . . . . . . . . . . . . . . . . . Reprogrammed . | . . . . . . . . . . . . . . . . . Reused . | . . . . . . . . . . . . . . . . . Traps Extracted . | . . . . . . . . . . . . . . . . . Installed . | . . . . . . . . . . . . . . . . . Triggered 1 | . . . . . . . . . . . . 1 . . . . Machines | -11 -10 -10 -9 -9 -9 -8 -8 -7 -7 -7 -7 -6 -6 -6 -6 -6 ---------- Run | Yrd Mat Min Mat Min Exi Min Mat Fac Low Low Zio Pro Fac Was Fac Low Machines Disabled 9 | . . . . . . 1 2 5 . . . . . . 1 . Max in Single Turn 1 | . . . . . . 1 1 1 . . . . . . 1 . Machines Repaired . | . . . . . . . . . . . . . . . . . Machines Dismantled . | . . . . . . . . . . . . . . . . . Machines Sabotaged . | . . . . . . . . . . . . . . . . . Overloaded Fab Kills . | . . . . . . . . . . . . . . . . . Hacking | -11 -10 -10 -9 -9 -9 -8 -8 -7 -7 -7 -7 -6 -6 -6 -6 -6 --------- Run | Yrd Mat Min Mat Min Exi Min Mat Fac Low Low Zio Pro Fac Was Fac Low Machines Accessed 25 | . 7 1 1 1 . . . 9 . . . . 1 . 5 . Terminals 16 | . 6 1 1 . . . . 4 . . . . . . 4 . Fabricators 1 | . . . . . . . . 1 . . . . . . . . Repair Stations . | . . . . . . . . . . . . . . . . . Recycling Units 3 | . 1 . . . . . . . . . . . 1 . 1 . Scanalyzers 4 | . . . . . . . . 4 . . . . . . . . Garrison Access . | . . . . . . . . . . . . . . . . . Total Hacks 60 | . 16 2 5 1 . . . 27 . . . . 1 . 8 . Successful 25 | . 7 1 . 1 . . . 16 . . . . . . . . Failed 35 | . 9 1 5 . . . . 11 . . . . 1 . 8 . Catastrophic 9 | . 2 1 1 . . . . 3 . . . . . . 2 . Database Lockouts . | . . . . . . . . . . . . . . . . . Manual 18 | . 9 1 . . 1 . . 5 . . . . . . 2 . Terminals 40 | . 15 2 5 . . . . 11 . . . . . . 7 . Fabricators 3 | . . . . . . . . 3 . . . . . . . . Repair Stations . | . . . . . . . . . . . . . . . . . Recycling Units 3 | . 1 . . . . . . . . . . . 1 . 1 . Scanalyzers 13 | . . . . . . . . 13 . . . . . . . . Garrison Access . | . . . . . . . . . . . . . . . . . Terminal Hacks 10 | . 2 1 . 1 . . . 6 . . . . . . . . Open Door 1 | . . . . 1 . . . . . . . . . . . . Branch Access Points 1 | . . . . . . . . 1 . . . . . . . . Scanalyzer Index 1 | . . . . . . . . 1 . . . . . . . . Unreport Threat 1 | . 1 . . . . . . . . . . . . . . . Locate Traps 2 | . . . . . . . . 2 . . . . . . . . Hauler Manifests 2 | . 1 . . . . . . 1 . . . . . . . . Registered Components 1 | . . . . . . . . 1 . . . . . . . . Zone Layout 1 | . . 1 . . . . . . . . . . . . . . Fabricator Hacks 1 | . . . . . . . . 1 . . . . . . . . Load Schematic 1 | . . . . . . . . 1 . . . . . . . . Repair Station Hacks . | . . . . . . . . . . . . . . . . . Recycling Unit Hacks 1 | . 1 . . . . . . . . . . . . . . . Report Inventory 1 | . 1 . . . . . . . . . . . . . . . Scanalyzer 9 | . . . . . . . . 9 . . . . . . . . Insert Component 5 | . . . . . . . . 5 . . . . . . . . Analyze 4 | . . . . . . . . 4 . . . . . . . . Garrison Access Hacks . | . . . . . . . . . . . . . . . . . Unauthorized Hacks 4 | . 4 . . . . . . . . . . . . . . . Terminals 4 | . 4 . . . . . . . . . . . . . . . Botnet 4 | . 4 . . . . . . . . . . . . . . . Fabricators . | . . . . . . . . . . . . . . . . . Repair Stations . | . . . . . . . . . . . . . . . . . Recycling Units . | . . . . . . . . . . . . . . . . . Scanalyzers . | . . . . . . . . . . . . . . . . . Garrison Access . | . . . . . . . . . . . . . . . . . Data Cores Recovered . | . . . . . . . . . . . . . . . . . Used . | . . . . . . . . . . . . . . . . . Hacking Detections 22 | . 6 1 1 . . . . 9 . . . . 1 . 4 . Full Trace Events . | . . . . . . . . . . . . . . . . . Feedback Events . | . . . . . . . . . . . . . . . . . Feedback Blocked . | . . . . . . . . . . . . . . . . . Robot Schematics Acquired . | . . . . . . . . . . . . . . . . . Robots Built . | . . . . . . . . . . . . . . . . . Authchips . | . . . . . . . . . . . . . . . . . Time . | . . . . . . . . . . . . . . . . . Total Robot Build Rating . | . . . . . . . . . . . . . . . . . Part Schematics Acquired 4 | . . . . . . . . 4 . . . . . . . . Parts Built . | . . . . . . . . . . . . . . . . . Authchips . | . . . . . . . . . . . . . . . . . Time . | . . . . . . . . . . . . . . . . . Total Part Build Rating . | . . . . . . . . . . . . . . . . . Parts Repaired . | . . . . . . . . . . . . . . . . . Time . | . . . . . . . . . . . . . . . . . Parts Recycled . | . . . . . . . . . . . . . . . . . Recycled Matter . | . . . . . . . . . . . . . . . . . Retrieved Matter . | . . . . . . . . . . . . . . . . . Retrieved Components . | . . . . . . . . . . . . . . . . . Parts Scanalyzed 4 | . . . . . . . . 4 . . . . . . . . Part Schematics Acquired 4 | . . . . . . . . 4 . . . . . . . . Parts Damaged . | . . . . . . . . . . . . . . . . . Bothacking | -11 -10 -10 -9 -9 -9 -8 -8 -7 -7 -7 -7 -6 -6 -6 -6 -6 ------------ Run | Yrd Mat Min Mat Min Exi Min Mat Fac Low Low Zio Pro Fac Was Fac Low Used RIF Installer . | . . . . . . . . . . . . . . . . . Robots Hacked . | . . . . . . . . . . . . . . . . . Non-combat . | . . . . . . . . . . . . . . . . . Combat . | . . . . . . . . . . . . . . . . . Robot Hacks Applied . | . . . . . . . . . . . . . . . . . Relay Couplers Released . | . . . . . . . . . . . . . . . . . Fabnet Peak Effective % . | . . . . . . . . . . . . . . . . . Robots Rewired . | . . . . . . . . . . . . . . . . . Allies Hacked . | . . . . . . . . . . . . . . . . . Hacks Repelled . | . . . . . . . . . . . . . . . . . Allies | -11 -10 -10 -9 -9 -9 -8 -8 -7 -7 -7 -7 -6 -6 -6 -6 -6 -------- Run | Yrd Mat Min Mat Min Exi Min Mat Fac Low Low Zio Pro Fac Was Fac Low Total Allies 1 | . . . . . . . . . . . . . . 1 . . Largest Group 1 | . . . . . . . . . . . . . . 1 . . Highest-Rated Group 31 | . . . . . . . . . . . . . . 31 . . Highest-Rated Ally 31 | . . . . . . . . . . . . . . 31 . . Total Orders 4 | . . . . . . . . . . . . . 4 . . . ROAM 1 | . . . . . . . . . . . . . 1 . . . EXPLORE 3 | . . . . . . . . . . . . . 3 . . . Ally Attacks 9 | . . . . . . . . . . . . . . 9 . . Total Damage 145 | . . . . . . . . . . . . . . 145 . . Kills . | . . . . . . . . . . . . . . . . . Allies Corrupted . | . . . . . . . . . . . . . . . . . Allies Melted . | . . . . . . . . . . . . . . . . . Intel | -11 -10 -10 -9 -9 -9 -8 -8 -7 -7 -7 -7 -6 -6 -6 -6 -6 ------- Run | Yrd Mat Min Mat Min Exi Min Mat Fac Low Low Zio Pro Fac Was Fac Low Robot Analysis Total . | . . . . . . . . . . . . . . . . . Derelict Logs Recovered 6 | . . . . 2 . . . . . 1 1 2 . . . . Drone Launches 8 | . . . . . . . . . . . . . 6 2 . . Drone Recoveries 1 | . . . . . . . . . . . . . 1 . . . Exploration | -11 -10 -10 -9 -9 -9 -8 -8 -7 -7 -7 -7 -6 -6 -6 -6 -6 ------------- Run | Yrd Mat Min Mat Min Exi Min Mat Fac Low Low Zio Pro Fac Was Fac Low Turns Passed 10854 | 77 532 305 462 557 358 54 556 2924 257 267 1061 858 1225 121 1240 . Spaces Moved 6008 | 48 324 152 201 360 248 15 204 1440 196 185 806 394 503 111 821 . Core 2 | 1 . . . . . . 1 . . . . . . . . . Treads 522 | 1 . . 7 . . . 77 357 . . . 11 69 . . . Legs . | . . . . . . . . . . . . . . . . . Wheels 4925 | 46 324 152 194 360 248 15 126 1083 196 185 806 383 434 57 316 . Hover 559 | . . . . . . . . . . . . . . 54 505 . Flight . | . . . . . . . . . . . . . . . . . Fastest Speed 50 | 50 95 110 105 140 110 125 110 110 130 130 130 130 125 60 96 . Average Speed 134 | 91 108 110 130 140 138 125 156 141 130 130 130 132 167 99 120 . Slowest Speed 650 | 160 110 110 240 140 140 125 650 320 130 130 130 240 240 140 185 . Overloaded Moves . | . . . . . . . . . . . . . . . . . Propulsion Burnouts . | . . . . . . . . . . . . . . . . . Robots Hopped 1 | . . . . . . . . . . . 1 . . . . . Cave-ins Triggered . | . . . . . . . . . . . . . . . . . Exploration Rate (%) 38 | 3 61 39 21 78 61 7 20 39 43 40 82 54 16 72 22 4 Regions Visited 16 Branch Regions 9 Pre-discovered Areas 4 | . . 1 . 1 . . . . . . 2 . . . . . Known Exits Taken 3 | . . . . . . . . 1 . 1 . . . . 1 . Unknown Exits Taken 11 | 1 1 1 1 1 1 1 1 . 1 . 1 1 . . . . Scrap Searched 11 | . . . . 1 . . . . 2 3 3 2 . . . . Spaces Dug 37 | . . . . . . . 3 26 . . . 2 3 . 3 . Terrain Destroyed 245 | . . . . 24 . 36 15 35 . 15 . 106 3 . 11 . Melee 35 | . . . . . . . 3 26 . . . . 3 . 3 . Projectile 24 | . . . . . . . 1 4 . 3 . 8 . . 8 . AOE 186 | . . . . 24 . 36 11 5 . 12 . 98 . . . . Terrain Rammed . | . . . . . . . . . . . . . . . . . Walls Destroyed . | . . . . . . . . . . . . . . . . . Machines Disabled . | . . . . . . . . . . . . . . . . . Actions | -11 -10 -10 -9 -9 -9 -8 -8 -7 -7 -7 -7 -6 -6 -6 -6 -6 --------- Run | Yrd Mat Min Mat Min Exi Min Mat Fac Low Low Zio Pro Fac Was Fac Low Total 8219 | 71 437 229 332 399 263 30 394 2211 199 199 819 654 863 120 999 . Wait 1460 | 6 51 39 56 19 . 3 133 628 . 1 3 178 288 . 55 . Move 5991 | 47 323 151 200 359 247 14 203 1439 195 184 803 393 503 110 820 . Hop 1 | . . . . . . . . . . . 1 . . . . . Pick Up 138 | 7 15 2 9 2 2 . 13 23 . 2 2 9 23 2 27 . Fast Attach 50 | 5 . . 6 . 6 . . 4 1 1 4 2 6 2 13 . Attach 67 | 2 1 2 5 . . 2 5 8 1 . . 15 12 5 9 . Detach 9 | . . . 1 . . . . 3 1 . . . 1 . 3 . Swap 53 | 1 4 3 5 4 . 1 6 13 . 1 . 11 1 . 3 . Drop 107 | . 7 1 13 2 8 . 10 20 1 3 6 7 15 1 13 . Fire 233 | 3 36 22 37 13 . 10 20 22 . 7 . 28 8 . 27 . Melee 101 | . . 9 . . . . 4 51 . . . 11 6 . 20 . Ram 1 | . . . . . . . . . . . . . . . 1 . Kick . | . . . . . . . . . . . . . . . . . Crush . | . . . . . . . . . . . . . . . . . Escape Stasis 8 | . . . . . . . . . . . . . . . 8 . Rewire . | . . . . . . . . . . . . . . . . . Trap . | . . . . . . . . . . . . . . . . . Miscellaneous . | . . . . . . . . . . . . . . . . . Route ------- -11/Scrapyard -10/Materials -10/Mines -9/Materials -9/Mines (discovered 4 exits: [*Mat x2] / *Exi / *Zio) -9/Exiles -8/Mines -8/Materials -7/Factory (discovered 3 exits: *Fac / *Low x2) -7/Lower Caves -7/Lower Caves -7/Zion -6/Proximity Caves -6/Factory (discovered 4 exits: Fac x2 / *Low x2) -6/Waste -6/Factory -6/Lower Caves History --------- Turn | Location | Event 21 | -11/Scrapyard | Discovered new exit (range 16) 78 | -11/Scrapyard | Entered Materials 296 | -10/Materials | Discovered new exit (range 15) 339 | -10/Materials | Build established: Mutant 610 | -10/Materials | Entered Mines 875 | -10/Mines | Discovered new exit (range 9) 895 | -10/Mines | Learned location of Storage (-9) 915 | -10/Mines | Entered Materials 915 | -9/Materials | Evolved 2 slots: Propulsion x1, Utility x1 1223 | -9/Materials | Build established: Scavenger-Mutant 1295 | -9/Materials | Discovered new exit (range 13) 1377 | -9/Materials | Entered Mines 1418 | -9/Mines | Found a hidden stash of uninstalled traps 1452 | -9/Mines | Met a Derelict shopkeep closing up shop 1495 | -9/Mines | A Derelict revealed a hidden shortcut to a safe place 1498 | -9/Mines | Learned Materials stockpile data 1675 | -9/Mines | Received a Rocket Launcher from a helpful Derelict 1700 | -9/Mines | Discovered new exit (range 15) 1724 | -9/Mines | Discovered new exit (range 7) 1927 | -9/Mines | Deemed a non-threat by the Exiles lab entrance 1928 | -9/Mines | Discovered new exit (range 5) 1934 | -9/Mines | Entered Exiles 1968 | -9/Exiles | Met 8R-AWN 1993 | -9/Exiles | Met EX-HEX 2034 | -9/Exiles | Met EX-BIN 2051 | -9/Exiles | Aligned with FarCom system 2052 | -9/Exiles | Given EX-Vault access code 2098 | -9/Exiles | Opened EX-Vault 2117 | -9/Exiles | Found Prototype Energy Cannon 2117 | -9/Exiles | Identified Firepult 2122 | -9/Exiles | Found Prototype Device 2122 | -9/Exiles | Identified Trap Reconfigurator 2127 | -9/Exiles | Found Prototype Device 2127 | -9/Exiles | Identified PSU Rigger 2173 | -9/Exiles | Warned to stay clear of 0b10 Research branches 2219 | -9/Exiles | Met EX-DEC 2280 | -9/Exiles | Discovered new exit (range 10) 2292 | -9/Exiles | Left Exiles lab with Trap Reconfigurator 2292 | -9/Exiles | Entered Mines 2298 | -8/Mines | Discovered new exit (range 12) 2346 | -8/Mines | Entered Materials 2346 | -8/Materials | Evolved 2 slots: Utility x1, Weapon x1 2589 | -8/Materials | Build established: Scavenger-Skirmisher 2825 | -8/Materials | Discovered new exit (range 17) 2902 | -8/Materials | Entered Factory 2902 | -7/Factory | Evolved 2 slots: Power x1, Propulsion x1 3063 | -7/Factory | Identified exit to Lower Caves 3962 | -7/Factory | Build established: Mutant 5175 | -7/Factory | Discovered new exit (range 18) 5292 | -7/Factory | Build established: Skirmisher 5629 | -7/Factory | Build established: Mutant 5826 | -7/Factory | Entered Lower Caves 6076 | -7/Lower Caves | Discovered new exit (range 7) 6083 | -7/Lower Caves | Entered another Lower Caves area 6128 | -7/Lower Caves | Build established: Gunner 6133 | -7/Lower Caves | Encountered a Warlord checkpoint 6142 | -7/Lower Caves | Identified exit to Zion 6350 | -7/Lower Caves | Entered Zion 6393 | -7/Zion | Discovered new exit (range 16) 6452 | -7/Zion | System corruption cleaned by Quarantine Array 6622 | -7/Zion | Learned location of Data Miner (-6) 6828 | -7/Zion | Rebuked by Imprinter 6881 | -7/Zion | Learned location of 1 exit from Factory 6997 | -7/Zion | Given the Hacking Drone Bay 7001 | -7/Zion | Found Prototype Device 7001 | -7/Zion | Identified Hacking Drone Bay 7411 | -7/Zion | Entered Proximity Caves 7531 | -6/Proximity Caves | Attracted the attention of an 0b10 checkpoint 7674 | -6/Proximity Caves | Learned location of 2 exits from Factory 8031 | -6/Proximity Caves | Lost 5 parts (1p2u2w) 8222 | -6/Proximity Caves | Core integrity fell below 50% 8257 | -6/Proximity Caves | Discovered new exit (range 5) 8269 | -6/Proximity Caves | Entered Factory 8269 | -6/Factory | Evolved 2 slots: Propulsion x1, Utility x1 8270 | -6/Factory | Identified exit to Factory 8270 | -6/Factory | Identified exit to Lower Caves 8277 | -6/Factory | Lost 8 parts (2p3n1u2w) 8328 | -6/Factory | Build established: Scavenger-Mutant 8601 | -6/Factory | Discovered exit to Lower Caves (range 27) 9494 | -6/Factory | Sucked down chute 9494 | -6/Factory | Entered Waste 9495 | -6/Waste | Met a frightened Derelict 9506 | -6/Waste | Spotted C-40 Crusher 9517 | -6/Waste | Spotted C-40 Crusher 9550 | -6/Waste | Spotted C-40 Crusher 9553 | -6/Waste | Spotted C-40 Crusher 9553 | -6/Waste | Spotted C-40 Crusher 9554 | -6/Waste | 2 allies followed down the chute 9558 | -6/Waste | Lost 4 allies 9558 | -6/Waste | Spotted C-40 Crusher 9562 | -6/Waste | Crushed by Compactor (1 part destroyed, 1 dropped) 9565 | -6/Waste | Crushed by Compactor (1 part destroyed, 1 dropped) 9565 | -6/Waste | Crushed by Compactor (1 part destroyed, 2 dropped) 9568 | -6/Waste | Crushed by Compactor (1 part destroyed, 2 dropped) 9569 | -6/Waste | Crushed by Compactor (0 parts destroyed, 1 dropped) 9589 | -6/Waste | Discovered new exit (range 16) 9599 | -6/Waste | Lost 6 parts (3n1u2w) 9615 | -6/Waste | Entered Factory 9864 | -6/Factory | Build established: Mutant 10370 | -6/Factory | Lost 4 parts (1p3w) 10722 | -6/Factory | Build established: Scavenger-Skirmisher 10838 | -6/Factory | Discovered exit to Lower Caves (range 12) 10855 | -6/Factory | Entered Lower Caves 10855 | -6/Lower Caves | Self-destructed Last Messages --------------- 10651_ U-05 Engineer builds a Wall. 10681_ ALERT: Suspicious intruders detected, dispatching Specialist reinforcements to area. 10684_ Connecting with Terminal... 10691_ Lgt. Treads destroyed. 10707_ Acquired Imp. Salvage Targeting Computer. 10716_ Acquired Imp. Heavy Armor Plating. 10720_ P-60 Hacker resets T-07 Excavator, system corruption cleaned. 10733_ System corrupted: Matter fused (-4). 10753_ Imp. Heat Sink destroyed. 10761_ P-60 Hacker destroyed. 10767_ Acquired 40 matter. 10786_ Acquired Core Analyzer. 10805_ System corrupted: Substantial component data lost. 10806_ Connecting with Terminal... 10838_ EXIT=FOUND: LOWER CAVES LOCATION=LOWER CAVES GOAL=ESCAPE Map ----- +----------------------------------------------------+ | | | | | | | | | | | | | ?????????????????????????????????????????????????? | | ?????????????????????????????????????????????????? | | ?????????????????????????????????????????????????? | | ?????????????????????????????????????????????????? | | ?????????????????????????????????????????????????? | | ?????????????????????????????????????????????????? | | ?????????????????????????????????????????????????? | | ?????????????????????????????????????????????????? | | ?????????????????????????????????????????????????? | | ?????????????????????????????????????????????????? | | ?????????????????????????????????????????????????? | | ?????????????????????????????????????????????????? | | ?????????????????????????????????????????????????? | | ?????????????????????????????????????????????????? | | ?????????????????????##????####??????????????????? | | ?????????????????????# #### #??????????????????? | | ??????????????????#### #??????????????????? | | ??????????????????# #??????????????????? | | ?????????????????## #??????????????????? | | ?????????????????# @ #??????????????????? | | ?????????????????# #??????????????????? | | ????????????????# #??????????????????? | | ???????????????# #?????????????????? | | ????????????? ## #????????????????? | | ??????????# ? #???????????????? | | ?????????? ####??# #???????????????? | | ?????????? ??????? #???????????????? | | ???????????## ## ???????? ??????????????? | | ????????????# ##?# ????????? ?????????????? | | ????????????# ????####???????????###????????????? | | ????????????# ???????????????????????????????????? | | ????????????#????????????????????????????????????? | | ?????????????????????????????????????????????????? | | ?????????????????????????????????????????????????? | | ?????????????????????????????????????????????????? | | ?????????????????????????????????????????????????? | | ?????????????????????????????????????????????????? | | ?????????????????????????????????????????????????? | | ?????????????????????????????????????????????????? | | ?????????????????????????????????????????????????? | | ?????????????????????????????????????????????????? | | ?????????????????????????????????????????????????? | | ?????????????????????????????????????????????????? | | ?????????????????????????????????????????????????? | +----------------------------------------------------+ Best States ------------- Heat Dissipation 62 Coolant Potential 65 Energy Generation 24 Energy Capacity 460 Matter Stores 300 Matter Capacity 300 Sight Range 18 Robot Scan Range 14 Terrain Scan Range 16 Terrain Scan Density 10 Cloak Strength 2 Armor Coverage 375 Evasion (%) 53 Target Analysis 5 Core Analysis 6 Recoil Reduction 3 Authchip Count 4 Item Schematics ----------------- Hacking Suite | -7/Factory | Scanalyzed Lgt. Nuclear Core | -7/Factory | Scanalyzed Gauss Cannon | -7/Factory | Scanalyzed Arm. Huge Wheel | -7/Factory | Scanalyzed Robot Schematics ------------------ None Fabricated ------------ Nothing Alien Tech Used ----------------- None Achievements -------------- None Challenges ------------ None Game ------ Seed HelicalBiomechanicalChainsaw Manual? 0 Play Time 01:55:31 Cumulative 41.4 hours Start 2024.12.24 @ 14:13:13 End 2024.12.25 @ 17:51:46 Sessions 5 Manual Loads 0 Difficulty Rogue Special Mode None Game No. 40 Rogue 40 Adventurer 0 Explorer 0 Win Type - Total 0 Types 0/0/0/0/0/0/0/0/0 Lore% 24 Gallery% 33 Achievement% 30 Wizard Run 0 Options --------- Layout 1 ASCII 0 Keyboard 0 Movement Arrows Keybinds 0 Fullscreen 2 Font 24/Terminus Map View 50x35 Zoom Use 0% Tactical HUD 1 Map Filters NONE Filters NONE Steam 1 RUN: 013b9fca-4785-4701-9271-3c186d2d7507